[Event "GrandPrix_29.05"]
[Site "Chess.com"]
[Date "2020.05.29"]
[Round "7"]
[White "cantdefyme"]
[Black "esskeettit"]
[Result "0-1"]
[WhiteElo "1982"]
[BlackElo "2095"]
[TimeControl "600+2"]
[EndTime "12:24:15 PDT"]
[Termination "esskeettit won by resignation"]

1. e4 {[%clk 0:10:01.9]} 1... c5 {[%clk 0:09:49.6]} 2. Nf3 {[%clk 0:10:03]} 2...
Nc6 {[%clk 0:09:50.5]} 3. d4 {[%clk 0:10:03.9]} 3... cxd4 {[%clk 0:09:52.4]} 4.
Nxd4 {[%clk 0:10:05]} 4... g6 {[%clk 0:09:54]} 5. Nc3 {[%clk 0:10:05.5]} 5...
Bg7 {[%clk 0:09:50.4]} 6. Be3 {[%clk 0:10:06.9]} 6... Nf6 {[%clk 0:09:51.2]} 7.
Bc4 {[%clk 0:10:07.7]} 7... O-O {[%clk 0:09:52.2]} 8. Bb3 {[%clk 0:10:08.7]}
8... Re8 {[%clk 0:09:53.3]} 9. f3 {[%clk 0:10:06.2]} 9... d5 {[%clk 0:09:52.6]}
10. exd5 {[%clk 0:10:06.3]} 10... Nb4 {[%clk 0:09:53.5]} 11. Nde2 {[%clk
0:10:06.5]} 11... e6 {[%clk 0:09:50.8]} 12. dxe6 {[%clk 0:09:34.7]} 12... Bxe6
{[%clk 0:09:52.7]} 13. Bd2 {[%clk 0:04:40]} 13... Bxb3 {[%clk 0:09:02]} 14. axb3
{[%clk 0:04:41.9]} 14... Qb6 {[%clk 0:09:02.9]} 15. Na4 {[%clk 0:04:31.7]} 15...
Qb5 {[%clk 0:08:39.5]} 16. Bxb4 {[%clk 0:01:15]} 16... Qxb4+ {[%clk 0:08:41.4]}
17. c3 {[%clk 0:01:01.2]} 17... Qe7 {[%clk 0:07:44.7]} 18. c4 {[%clk 0:00:48.6]}
18... Nh5 {[%clk 0:07:16]} 19. Nc3 {[%clk 0:00:41.5]} 19... Bxc3+ {[%clk
0:06:58.4]} 20. bxc3 {[%clk 0:00:43.4]} 20... Nf4 {[%clk 0:06:56.2]} 21. Ra2
{[%clk 0:00:28]} 21... Rad8 {[%clk 0:06:49.1]} 22. Qc2 {[%clk 0:00:25.6]} 22...
Nxe2 {[%clk 0:06:45.3]} 0-1

[Event "GrandPrix_29.05"]
[Site "Chess.com"]
[Date "2020.05.29"]
[Round "7"]
[White "Borsuk_Konstantin"]
[Black "SergeyVashchilov"]
[Result "1/2-1/2"]
[WhiteElo "1853"]
[BlackElo "2055"]
[TimeControl "600+2"]
[EndTime "12:24:19 PDT"]
[Termination "Game drawn by repetition"]

1. d4 {[%clk 0:10:01.9]} 1... d5 {[%clk 0:10:00.3]} 2. c4 {[%clk 0:10:02.8]}
2... e6 {[%clk 0:10:01.1]} 3. Nc3 {[%clk 0:10:03.4]} 3... Nf6 {[%clk 0:10:01.7]}
4. cxd5 {[%clk 0:10:04.3]} 4... exd5 {[%clk 0:10:02.7]} 5. Bg5 {[%clk
0:10:04.7]} 5... Be7 {[%clk 0:10:03.7]} 6. e3 {[%clk 0:10:05]} 6... c6 {[%clk
0:10:04.7]} 7. Bd3 {[%clk 0:10:05.2]} 7... Nbd7 {[%clk 0:10:05.8]} 8. Qc2 {[%clk
0:10:05.5]} 8... Nh5 {[%clk 0:10:07]} 9. Bxe7 {[%clk 0:10:03.9]} 9... Qxe7
{[%clk 0:10:08.9]} 10. Nge2 {[%clk 0:09:58.3]} 10... Nb6 {[%clk 0:10:09.1]} 11.
O-O {[%clk 0:09:53.5]} 11... g6 {[%clk 0:10:09.7]} 12. Rae1 {[%clk 0:09:43.5]}
12... O-O {[%clk 0:10:09.8]} 13. Nc1 {[%clk 0:09:31.2]} 13... Ng7 {[%clk
0:09:44.2]} 14. f3 {[%clk 0:08:48.2]} 14... Be6 {[%clk 0:09:07.7]} 15. Nb3
{[%clk 0:08:36.9]} 15... Nd7 {[%clk 0:08:22.3]} 16. Qf2 {[%clk 0:08:22]} 16...
c5 {[%clk 0:07:53.4]} 17. Nxc5 {[%clk 0:08:13.8]} 17... Nxc5 {[%clk 0:07:54]}
18. dxc5 {[%clk 0:08:14.5]} 18... Qxc5 {[%clk 0:07:54.7]} 19. Rc1 {[%clk
0:07:10.8]} 19... Rac8 {[%clk 0:07:38]} 20. Ne2 {[%clk 0:06:40.7]} 20... Qa5
{[%clk 0:07:28.5]} 21. Nd4 {[%clk 0:06:16.6]} 21... Rxc1 {[%clk 0:07:24.3]} 22.
Rxc1 {[%clk 0:06:16.4]} 22... Qxa2 {[%clk 0:07:25.4]} 23. Rc7 {[%clk 0:05:52.5]}
23... Qa1+ {[%clk 0:06:54.7]} 24. Bf1 {[%clk 0:05:50.8]} 24... b6 {[%clk
0:05:36]} 25. g4 {[%clk 0:05:43.9]} 25... Ne8 {[%clk 0:04:00.4]} 26. Re7 {[%clk
0:05:34.6]} 26... Ng7 {[%clk 0:03:49.8]} 27. Rc7 {[%clk 0:05:22.2]} 27... Ne8
{[%clk 0:03:49.6]} 28. Re7 {[%clk 0:05:02.9]} 28... Ng7 {[%clk 0:03:49.8]} 29.
Rc7 {[%clk 0:03:44.2]} 1/2-1/2

[Event "GrandPrix_29.05"]
[Site "Chess.com"]
[Date "2020.05.29"]
[Round "7"]
[White "Volodar_Murzin"]
[Black "tsaruk_maks"]
[Result "0-1"]
[WhiteElo "2396"]
[BlackElo "2311"]
[TimeControl "600+2"]
[EndTime "12:24:21 PDT"]
[Termination "tsaruk_maks won by resignation"]

1. e4 {[%clk 0:10:01.4]} 1... e6 {[%clk 0:09:57.1]} 2. d4 {[%clk 0:09:57.8]}
2... d5 {[%clk 0:09:58.5]} 3. Nc3 {[%clk 0:09:56.1]} 3... Bb4 {[%clk 0:10:00]}
4. e5 {[%clk 0:09:57]} 4... c5 {[%clk 0:10:00.6]} 5. a3 {[%clk 0:09:58.3]} 5...
Bxc3+ {[%clk 0:10:01.6]} 6. bxc3 {[%clk 0:09:59.9]} 6... Ne7 {[%clk 0:10:02.7]}
7. a4 {[%clk 0:09:56.6]} 7... b6 {[%clk 0:09:38.7]} 8. Nf3 {[%clk 0:09:48.3]}
8... Ba6 {[%clk 0:09:34.6]} 9. Bb5+ {[%clk 0:09:44.3]} 9... Bxb5 {[%clk
0:09:29.7]} 10. axb5 {[%clk 0:09:46.2]} 10... a5 {[%clk 0:09:30.3]} 11. Ba3
{[%clk 0:09:34.7]} 11... Nd7 {[%clk 0:09:15.7]} 12. Qd3 {[%clk 0:09:27.1]} 12...
O-O {[%clk 0:09:00.3]} 13. O-O {[%clk 0:09:18.5]} 13... c4 {[%clk 0:08:07.5]}
14. Qd2 {[%clk 0:09:13.4]} 14... Re8 {[%clk 0:08:08.1]} 15. Ng5 {[%clk
0:08:53.7]} 15... h6 {[%clk 0:06:19.9]} 16. Nh3 {[%clk 0:08:51.5]} 16... Ng6
{[%clk 0:05:50.1]} 17. f4 {[%clk 0:08:44.8]} 17... f5 {[%clk 0:05:37.5]} 18. Qe2
{[%clk 0:08:30.1]} 18... Ndf8 {[%clk 0:05:15.9]} 19. Kh1 {[%clk 0:08:27]} 19...
Qh4 {[%clk 0:04:51.2]} 20. Rf3 {[%clk 0:08:20.3]} 20... Ra7 {[%clk 0:04:49.2]}
21. Raf1 {[%clk 0:08:16.2]} 21... Rf7 {[%clk 0:04:47.7]} 22. Qd2 {[%clk
0:07:51.1]} 22... Qd8 {[%clk 0:04:24.7]} 23. Rg3 {[%clk 0:07:33.8]} 23... Qd7
{[%clk 0:04:23.2]} 24. Rb1 {[%clk 0:07:31.7]} 24... Nh8 {[%clk 0:04:00.3]} 25.
Qd1 {[%clk 0:07:19]} 25... g6 {[%clk 0:02:59.7]} 26. Qh5 {[%clk 0:06:42]} 26...
Rh7 {[%clk 0:02:53.6]} 27. Ng1 {[%clk 0:06:27.1]} 27... Kf7 {[%clk 0:02:50.1]}
28. Qh3 {[%clk 0:06:24.4]} 28... Ra8 {[%clk 0:01:41.3]} 29. Nf3 {[%clk
0:06:17.1]} 29... Ra7 {[%clk 0:01:36.9]} 30. Ng5+ {[%clk 0:06:09]} 30... hxg5
{[%clk 0:01:37.3]} 0-1

[Event "GrandPrix_29.05"]
[Site "Chess.com"]
[Date "2020.05.29"]
[Round "7"]
[White "cukus"]
[Black "Belka1989"]
[Result "1-0"]
[WhiteElo "2176"]
[BlackElo "2012"]
[TimeControl "600+2"]
[EndTime "12:24:23 PDT"]
[Termination "cukus won by resignation"]

1. e4 {[%clk 0:10:01.9]} 1... c5 {[%clk 0:10:00.1]} 2. Nf3 {[%clk 0:10:00.1]}
2... d6 {[%clk 0:10:00.6]} 3. d4 {[%clk 0:09:59.4]} 3... cxd4 {[%clk 0:10:02.5]}
4. Nxd4 {[%clk 0:10:01.3]} 4... Nf6 {[%clk 0:10:02.8]} 5. Nc3 {[%clk 0:10:02.6]}
5... a6 {[%clk 0:10:03.7]} 6. Be3 {[%clk 0:10:03.6]} 6... e5 {[%clk 0:10:03.5]}
7. Nb3 {[%clk 0:10:04.5]} 7... Be7 {[%clk 0:10:03.7]} 8. f3 {[%clk 0:10:05.8]}
8... Be6 {[%clk 0:10:02.4]} 9. Qd2 {[%clk 0:10:06.4]} 9... O-O {[%clk
0:10:02.1]} 10. O-O-O {[%clk 0:10:06.6]} 10... a5 {[%clk 0:10:02.8]} 11. a4
{[%clk 0:10:05.9]} 11... Nc6 {[%clk 0:10:02.7]} 12. Kb1 {[%clk 0:10:06.5]} 12...
Nb4 {[%clk 0:10:03.1]} 13. g4 {[%clk 0:10:06.7]} 13... Rc8 {[%clk 0:10:03.2]}
14. g5 {[%clk 0:10:04.3]} 14... Nh5 {[%clk 0:10:03.2]} 15. Rg1 {[%clk 0:09:56]}
15... d5 {[%clk 0:10:03.7]} 16. exd5 {[%clk 0:09:49.5]} 16... Bf5 {[%clk
0:10:04.1]} 17. Na1 {[%clk 0:09:45.1]} 17... Bd6 {[%clk 0:09:01.8]} 18. Ne4
{[%clk 0:09:30]} 18... Qd7 {[%clk 0:08:34.7]} 19. Bb5 {[%clk 0:09:22.2]} 19...
Qe7 {[%clk 0:08:34.9]} 20. c3 {[%clk 0:08:41.5]} 20... Na6 {[%clk 0:08:29.5]}
21. Nb3 {[%clk 0:08:18.2]} 21... Nf4 {[%clk 0:07:33.3]} 22. Ka1 {[%clk
0:07:54.5]} 22... Qc7 {[%clk 0:07:01.5]} 23. h4 {[%clk 0:06:51.5]} 23... Rfd8
{[%clk 0:06:48]} 24. Rge1 {[%clk 0:06:19.6]} 24... Bxe4 {[%clk 0:06:25]} 25.
fxe4 {[%clk 0:06:16.8]} 25... Nc5 {[%clk 0:06:25.7]} 26. Nxc5 {[%clk 0:06:04.5]}
26... Bxc5 {[%clk 0:06:27.6]} 27. Bxf4 {[%clk 0:05:58.5]} 27... exf4 {[%clk
0:06:24.8]} 28. e5 {[%clk 0:05:39.9]} 28... Be3 {[%clk 0:06:22.9]} 29. Rxe3
{[%clk 0:05:27]} 29... fxe3 {[%clk 0:06:22.6]} 30. Qxe3 {[%clk 0:05:28.9]} 30...
b6 {[%clk 0:06:13.4]} 31. d6 {[%clk 0:05:26]} 31... Qc5 {[%clk 0:06:11.5]} 32.
Qe4 {[%clk 0:05:21]} 32... g6 {[%clk 0:05:55]} 33. h5 {[%clk 0:05:18.9]} 33...
Qf2 {[%clk 0:04:29.8]} 34. Rf1 {[%clk 0:05:12.7]} 34... Qg3 {[%clk 0:04:15.2]}
35. d7 {[%clk 0:04:49.7]} 35... Rc5 {[%clk 0:04:08.2]} 36. e6 {[%clk 0:04:37.8]}
36... Qxg5 {[%clk 0:03:54.8]} 37. e7 {[%clk 0:04:16.3]} 1-0

[Event "GrandPrix_29.05"]
[Site "Chess.com"]
[Date "2020.05.29"]
[Round "7"]
[White "Kobalia"]
[Black "VSERGUEI"]
[Result "1-0"]
[WhiteElo "2304"]
[BlackElo "2346"]
[TimeControl "600+2"]
[EndTime "12:24:35 PDT"]
[Termination "Kobalia won by resignation"]

1. e4 {[%clk 0:10:01.9]} 1... e6 {[%clk 0:10:00.2]} 2. d3 {[%clk 0:10:02.8]}
2... d5 {[%clk 0:10:00.6]} 3. Nd2 {[%clk 0:10:04.4]} 3... Nf6 {[%clk 0:10:01.4]}
4. Ngf3 {[%clk 0:10:03.2]} 4... b6 {[%clk 0:10:01.1]} 5. e5 {[%clk 0:08:34.8]}
5... Nfd7 {[%clk 0:10:00.4]} 6. d4 {[%clk 0:08:35.7]} 6... c5 {[%clk 0:09:58.2]}
7. c3 {[%clk 0:08:34.9]} 7... Be7 {[%clk 0:09:58.1]} 8. Be2 {[%clk 0:08:11.8]}
8... Ba6 {[%clk 0:09:57.4]} 9. Nf1 {[%clk 0:08:12.4]} 9... Bxe2 {[%clk
0:09:56.2]} 10. Qxe2 {[%clk 0:08:12.9]} 10... Qc8 {[%clk 0:09:56.9]} 11. h4
{[%clk 0:08:01.5]} 11... Qa6 {[%clk 0:09:56.8]} 12. h5 {[%clk 0:08:00.8]} 12...
Qxe2+ {[%clk 0:09:56.2]} 13. Kxe2 {[%clk 0:08:01.5]} 13... h6 {[%clk 0:09:48.4]}
14. Be3 {[%clk 0:07:53.9]} 14... Nc6 {[%clk 0:09:47.2]} 15. N3d2 {[%clk
0:07:54.4]} 15... b5 {[%clk 0:09:36.9]} 16. f4 {[%clk 0:07:41.8]} 16... a5
{[%clk 0:09:35.7]} 17. Nh2 {[%clk 0:07:31.2]} 17... b4 {[%clk 0:09:33.1]} 18.
Nhf3 {[%clk 0:07:31.2]} 18... c4 {[%clk 0:09:22.5]} 19. a4 {[%clk 0:04:59.5]}
19... bxa3 {[%clk 0:09:19.2]} 20. bxa3 {[%clk 0:04:45.8]} 20... a4 {[%clk
0:09:18.8]} 21. Ne1 {[%clk 0:04:46.7]} 21... Na5 {[%clk 0:09:15.2]} 22. Nc2
{[%clk 0:04:47.3]} 22... Nb3 {[%clk 0:09:15.2]} 23. Ra2 {[%clk 0:04:39.1]} 23...
Nb8 {[%clk 0:09:07]} 24. Nb4 {[%clk 0:04:37.8]} 24... Na6 {[%clk 0:08:59.2]} 25.
g4 {[%clk 0:04:25.5]} 25... Kd7 {[%clk 0:08:56.6]} 26. f5 {[%clk 0:04:25.5]}
26... Nc7 {[%clk 0:08:44.8]} 27. Nb1 {[%clk 0:04:25.1]} 27... Nb5 {[%clk
0:08:40.8]} 28. Rf1 {[%clk 0:04:24.1]} 28... Rag8 {[%clk 0:08:29.8]} 29. Kd1
{[%clk 0:04:22.1]} 29... Ra8 {[%clk 0:07:44.2]} 30. Rf3 {[%clk 0:04:06.7]} 30...
Nc7 {[%clk 0:06:56.4]} 31. Raf2 {[%clk 0:04:03]} 31... Rhg8 {[%clk 0:06:50.9]}
32. fxe6+ {[%clk 0:03:48.7]} 32... fxe6 {[%clk 0:06:50.4]} 33. Rf7 {[%clk
0:03:49.7]} 33... Raf8 {[%clk 0:06:25]} 34. g5 {[%clk 0:03:43.2]} 34... Rxf7
{[%clk 0:05:53.6]} 35. Rxf7 {[%clk 0:03:42]} 35... Ke8 {[%clk 0:05:49.4]} 36. g6
{[%clk 0:03:41.3]} 36... Nb5 {[%clk 0:05:23.6]} 37. Nc6 {[%clk 0:03:34.8]} 37...
Bxa3 {[%clk 0:05:13]} 38. Nxa3 {[%clk 0:03:32.8]} 38... Nxa3 {[%clk 0:05:09.6]}
39. Re7+ {[%clk 0:03:29.1]} 39... Kf8 {[%clk 0:05:09]} 40. Rd7 {[%clk
0:03:27.1]} 1-0

[Event "GrandPrix_29.05"]
[Site "Chess.com"]
[Date "2020.05.29"]
[Round "7"]
[White "AlexVanGog"]
[Black "Novoselski"]
[Result "1-0"]
[WhiteElo "2633"]
[BlackElo "2434"]
[TimeControl "600+2"]
[EndTime "12:24:41 PDT"]
[Termination "AlexVanGog won by resignation"]

1. d4 {[%clk 0:10:01.9]} 1... g6 {[%clk 0:09:58.9]} 2. c4 {[%clk 0:10:02.5]}
2... Bg7 {[%clk 0:09:59.5]} 3. e4 {[%clk 0:10:03.8]} 3... c5 {[%clk 0:09:57.9]}
4. d5 {[%clk 0:10:04.3]} 4... e5 {[%clk 0:09:58]} 5. Nc3 {[%clk 0:10:03.6]} 5...
d6 {[%clk 0:09:58.8]} 6. g3 {[%clk 0:10:00.8]} 6... Ne7 {[%clk 0:09:59.1]} 7. h4
{[%clk 0:09:57.5]} 7... h6 {[%clk 0:09:51.4]} 8. Bg2 {[%clk 0:09:38.5]} 8... O-O
{[%clk 0:09:49.5]} 9. Bd2 {[%clk 0:09:28]} 9... Kh7 {[%clk 0:09:42.3]} 10. Nf3
{[%clk 0:08:04.2]} 10... Na6 {[%clk 0:09:23.4]} 11. a3 {[%clk 0:07:35]} 11...
Bd7 {[%clk 0:09:21.6]} 12. Nb5 {[%clk 0:06:51.7]} 12... Bxb5 {[%clk 0:09:06.2]}
13. cxb5 {[%clk 0:06:51.2]} 13... Nc7 {[%clk 0:09:05.7]} 14. a4 {[%clk
0:06:40.2]} 14... a6 {[%clk 0:09:02]} 15. b6 {[%clk 0:06:33.2]} 15... Ne8 {[%clk
0:09:01.4]} 16. a5 {[%clk 0:06:34.4]} 16... Nf6 {[%clk 0:08:59]} 17. Qc2 {[%clk
0:06:28.4]} 17... Neg8 {[%clk 0:08:15.6]} 18. O-O-O {[%clk 0:06:18.9]} 18... Ng4
{[%clk 0:08:10.2]} 19. Bc3 {[%clk 0:06:17.8]} 19... f6 {[%clk 0:07:48.3]} 20. h5
{[%clk 0:06:14.8]} 20... gxh5 {[%clk 0:07:25.3]} 21. Rxh5 {[%clk 0:06:13]} 21...
f5 {[%clk 0:07:25.6]} 22. exf5 {[%clk 0:05:53.7]} 22... N8f6 {[%clk 0:07:24.6]}
23. Ng5+ {[%clk 0:05:41.7]} 23... Kg8 {[%clk 0:07:23.7]} 24. Ne6 {[%clk
0:05:43.1]} 24... Qe7 {[%clk 0:07:09.7]} 25. Rh4 {[%clk 0:05:43.2]} 25... Rf7
{[%clk 0:06:53]} 26. Bf3 {[%clk 0:05:33.1]} 26... h5 {[%clk 0:06:49.7]} 27. Bxg4
{[%clk 0:05:34.1]} 27... hxg4 {[%clk 0:05:56.4]} 28. Rdh1 {[%clk 0:05:00.1]}
28... Rff8 {[%clk 0:05:27.5]} 29. Qd2 {[%clk 0:04:31.4]} 29... Ne4 {[%clk
0:05:17.6]} 30. Qe3 {[%clk 0:03:57.1]} 30... Nxc3 {[%clk 0:05:12.9]} 31. bxc3
{[%clk 0:03:55.1]} 31... Rf7 {[%clk 0:05:00.3]} 32. Rxg4 {[%clk 0:03:52.7]}
32... Qf6 {[%clk 0:04:55]} 33. Qh6 {[%clk 0:03:19.3]} 1-0

[Event "GrandPrix_29.05"]
[Site "Chess.com"]
[Date "2020.05.29"]
[Round "7"]
[White "Gabrielian_Artur"]
[Black "Magicmaster17"]
[Result "0-1"]
[WhiteElo "2454"]
[BlackElo "2495"]
[TimeControl "600+2"]
[EndTime "12:25:11 PDT"]
[Termination "Magicmaster17 won by resignation"]

1. e4 {[%clk 0:10:01.9]} 1... e5 {[%clk 0:09:59.8]} 2. Nc3 {[%clk 0:10:02.5]}
2... Nf6 {[%clk 0:10:00]} 3. g3 {[%clk 0:10:03.1]} 3... d5 {[%clk 0:09:52.1]} 4.
exd5 {[%clk 0:10:03.6]} 4... Nxd5 {[%clk 0:09:53.8]} 5. Bg2 {[%clk 0:10:04.9]}
5... Ne7 {[%clk 0:09:40.4]} 6. Nf3 {[%clk 0:10:01.5]} 6... Nbc6 {[%clk
0:09:40.8]} 7. O-O {[%clk 0:09:58.1]} 7... g6 {[%clk 0:09:41.8]} 8. d4 {[%clk
0:09:38.1]} 8... exd4 {[%clk 0:09:42.4]} 9. Nb5 {[%clk 0:09:29.3]} 9... Bg7
{[%clk 0:09:43.3]} 10. Bf4 {[%clk 0:09:20.5]} 10... O-O {[%clk 0:09:40.5]} 11.
Nxc7 {[%clk 0:09:09.6]} 11... Rb8 {[%clk 0:09:40.2]} 12. Re1 {[%clk 0:08:37.8]}
12... a6 {[%clk 0:08:52.6]} 13. Qd2 {[%clk 0:07:52]} 13... Bg4 {[%clk
0:08:34.3]} 14. Re4 {[%clk 0:05:31.3]} 14... Bf5 {[%clk 0:08:13.4]} 15. Re2
{[%clk 0:05:26.5]} 15... Rc8 {[%clk 0:08:14.3]} 16. Rae1 {[%clk 0:05:07.7]}
16... Rxc7 {[%clk 0:08:11.6]} 17. Bxc7 {[%clk 0:05:08.6]} 17... Qxc7 {[%clk
0:08:13.3]} 18. h3 {[%clk 0:05:08.2]} 18... h6 {[%clk 0:07:47.9]} 19. a3 {[%clk
0:05:07.7]} 19... Rd8 {[%clk 0:07:35.9]} 20. Nh4 {[%clk 0:05:05.4]} 20... Be6
{[%clk 0:06:57.1]} 21. Rxe6 {[%clk 0:05:04.2]} 21... fxe6 {[%clk 0:06:59]} 22.
Rxe6 {[%clk 0:05:05.2]} 22... g5 {[%clk 0:06:40.8]} 23. Nf3 {[%clk 0:04:48.5]}
23... Nf5 {[%clk 0:06:13.9]} 24. g4 {[%clk 0:04:21.9]} 24... Nfe7 {[%clk
0:06:14.2]} 25. Qe2 {[%clk 0:04:05.8]} 25... Rf8 {[%clk 0:05:09.3]} 26. Nd2
{[%clk 0:04:05.7]} 26... Ne5 {[%clk 0:05:02.2]} 27. Ne4 {[%clk 0:03:20.9]} 27...
N7g6 {[%clk 0:04:57.1]} 28. Rd6 {[%clk 0:02:38.9]} 28... Nf4 {[%clk 0:04:56]}
29. Qd1 {[%clk 0:02:39.1]} 29... Nc4 {[%clk 0:04:22.4]} 0-1

[Event "GrandPrix_29.05"]
[Site "Chess.com"]
[Date "2020.05.29"]
[Round "7"]
[White "ArnaudovP"]
[Black "1stSecond"]
[Result "1-0"]
[WhiteElo "2395"]
[BlackElo "2413"]
[TimeControl "600+2"]
[EndTime "12:25:13 PDT"]
[Termination "ArnaudovP won by resignation"]

1. d4 {[%clk 0:09:54.4]} 1... Nf6 {[%clk 0:09:31.1]} 2. c4 {[%clk 0:09:51.6]}
2... c5 {[%clk 0:09:25.7]} 3. d5 {[%clk 0:09:51.1]} 3... e6 {[%clk 0:09:26.9]}
4. Nc3 {[%clk 0:09:49.6]} 4... exd5 {[%clk 0:09:28.3]} 5. cxd5 {[%clk
0:09:51.4]} 5... d6 {[%clk 0:09:29.8]} 6. e4 {[%clk 0:09:49.1]} 6... a6 {[%clk
0:09:29.8]} 7. f4 {[%clk 0:09:23.9]} 7... Bg4 {[%clk 0:09:00.6]} 8. Nf3 {[%clk
0:09:04]} 8... Nbd7 {[%clk 0:08:56.7]} 9. a4 {[%clk 0:08:33.6]} 9... c4 {[%clk
0:07:34.1]} 10. Be3 {[%clk 0:08:13.9]} 10... Qa5 {[%clk 0:07:25.1]} 11. Bxc4
{[%clk 0:07:52.4]} 11... Nxe4 {[%clk 0:07:04]} 12. O-O {[%clk 0:07:36.8]} 12...
Nxc3 {[%clk 0:07:03.1]} 13. Qe1 {[%clk 0:07:13.3]} 13... Be7 {[%clk 0:06:49.4]}
14. Bd4 {[%clk 0:06:26.2]} 14... Rc8 {[%clk 0:06:20.2]} 15. Bd3 {[%clk 0:05:31]}
15... Nc5 {[%clk 0:04:40.4]} 16. Bc2 {[%clk 0:05:12.2]} 16... Qc7 {[%clk
0:02:51]} 17. bxc3 {[%clk 0:04:59.3]} 17... O-O {[%clk 0:02:48.5]} 18. Qg3
{[%clk 0:04:53.5]} 1-0

[Event "GrandPrix_29.05"]
[Site "Chess.com"]
[Date "2020.05.29"]
[Round "7"]
[White "Infernal_XaM"]
[Black "szachuspl"]
[Result "0-1"]
[WhiteElo "2556"]
[BlackElo "2417"]
[TimeControl "600+2"]
[EndTime "12:25:15 PDT"]
[Termination "szachuspl won by resignation"]

1. d4 {[%clk 0:10:01.9]} 1... Nf6 {[%clk 0:09:57.8]} 2. c4 {[%clk 0:10:03.3]}
2... g6 {[%clk 0:09:58]} 3. Nc3 {[%clk 0:10:04.2]} 3... Bg7 {[%clk 0:09:58.7]}
4. e4 {[%clk 0:10:04.9]} 4... d6 {[%clk 0:09:59.9]} 5. f3 {[%clk 0:10:05.1]}
5... O-O {[%clk 0:10:00.4]} 6. Be3 {[%clk 0:10:06.7]} 6... e5 {[%clk 0:09:55.4]}
7. d5 {[%clk 0:10:05.2]} 7... Nh5 {[%clk 0:09:55.5]} 8. Qd2 {[%clk 0:10:03.9]}
8... f5 {[%clk 0:09:55.2]} 9. O-O-O {[%clk 0:10:03.6]} 9... Nd7 {[%clk
0:09:45.9]} 10. Bd3 {[%clk 0:10:03.7]} 10... Nc5 {[%clk 0:09:30.8]} 11. Bc2
{[%clk 0:10:02.3]} 11... a5 {[%clk 0:09:31.7]} 12. exf5 {[%clk 0:09:58.8]} 12...
gxf5 {[%clk 0:09:24.9]} 13. Nge2 {[%clk 0:09:59.5]} 13... Kh8 {[%clk 0:09:01]}
14. Ng3 {[%clk 0:09:44]} 14... Qe8 {[%clk 0:08:22.6]} 15. Nb5 {[%clk 0:09:33.4]}
15... Na6 {[%clk 0:08:23.4]} 16. Qxa5 {[%clk 0:08:57.4]} 16... Bd7 {[%clk
0:07:37.7]} 17. Kb1 {[%clk 0:08:52]} 17... Nf4 {[%clk 0:07:12.5]} 18. Qd2 {[%clk
0:08:31.9]} 18... Bxb5 {[%clk 0:06:38.4]} 19. cxb5 {[%clk 0:08:32.3]} 19... Qxb5
{[%clk 0:06:38.2]} 20. a4 {[%clk 0:07:55.2]} 20... Qd7 {[%clk 0:06:31.3]} 21.
Rhe1 {[%clk 0:07:28.6]} 21... Nc5 {[%clk 0:06:23.3]} 22. Bxc5 {[%clk 0:07:28.2]}
22... dxc5 {[%clk 0:06:23.4]} 23. d6 {[%clk 0:07:29.8]} 23... cxd6 {[%clk
0:05:56.4]} 24. Qxd6 {[%clk 0:07:29.4]} 24... Qxd6 {[%clk 0:05:52.6]} 25. Rxd6
{[%clk 0:07:29.5]} 25... Nxg2 {[%clk 0:05:54]} 26. Rg1 {[%clk 0:07:25.3]} 26...
Ne3 {[%clk 0:05:53.7]} 27. Nh5 {[%clk 0:07:25.7]} 27... Rg8 {[%clk 0:05:43.4]}
28. Rd7 {[%clk 0:07:16.4]} 28... Bh6 {[%clk 0:05:35]} 29. Rxg8+ {[%clk
0:07:15.5]} 29... Rxg8 {[%clk 0:05:34.6]} 30. Nf6 {[%clk 0:07:15.4]} 30... Rg1+
{[%clk 0:05:17.1]} 31. Ka2 {[%clk 0:07:15.9]} 31... Bg7 {[%clk 0:05:16.2]} 32.
Rd8+ {[%clk 0:07:07.2]} 32... Bf8 {[%clk 0:05:17.2]} 33. Rxf8+ {[%clk
0:07:07.6]} 33... Kg7 {[%clk 0:05:18.6]} 34. Rg8+ {[%clk 0:07:07.7]} 34... Kxf6
{[%clk 0:05:19.8]} 35. Rxg1 {[%clk 0:07:08.9]} 35... Nxc2 {[%clk 0:05:21.5]} 36.
f4 {[%clk 0:05:42.7]} 36... exf4 {[%clk 0:05:12]} 37. Rf1 {[%clk 0:05:02.3]}
37... Ke5 {[%clk 0:05:11]} 38. Kb3 {[%clk 0:05:03.2]} 38... Ne3 {[%clk
0:05:09.3]} 39. Rf2 {[%clk 0:05:01.3]} 39... b6 {[%clk 0:04:50.3]} 40. a5 {[%clk
0:04:46.9]} 40... bxa5 {[%clk 0:04:50.7]} 41. Ka4 {[%clk 0:04:48.5]} 41... Ke4
{[%clk 0:04:50.7]} 42. Kxa5 {[%clk 0:04:47]} 42... f3 {[%clk 0:04:51.5]} 43. Kb5
{[%clk 0:04:35.9]} 43... c4 {[%clk 0:03:54.3]} 44. h3 {[%clk 0:04:17]} 44... Kf4
{[%clk 0:03:41.9]} 0-1

[Event "GrandPrix_29.05"]
[Site "Chess.com"]
[Date "2020.05.29"]
[Round "7"]
[White "viktorskliarov"]
[Black "RussianChessFighter"]
[Result "1-0"]
[WhiteElo "2213"]
[BlackElo "2203"]
[TimeControl "600+2"]
[EndTime "12:25:27 PDT"]
[Termination "viktorskliarov won by checkmate"]

1. e4 {[%clk 0:09:59.5]} 1... Nc6 {[%clk 0:09:57.8]} 2. Nc3 {[%clk 0:10:00.3]}
2... Nf6 {[%clk 0:09:52.5]} 3. d4 {[%clk 0:10:01]} 3... d5 {[%clk 0:09:53]} 4.
e5 {[%clk 0:10:02.4]} 4... Nd7 {[%clk 0:09:54.4]} 5. Nge2 {[%clk 0:09:32.7]}
5... Nb6 {[%clk 0:09:54.3]} 6. Ng3 {[%clk 0:09:33.2]} 6... g6 {[%clk 0:09:14.2]}
7. a4 {[%clk 0:09:14.5]} 7... a5 {[%clk 0:09:07.2]} 8. Bb5 {[%clk 0:09:10.6]}
8... Bf5 {[%clk 0:09:07.2]} 9. Nxf5 {[%clk 0:08:24.8]} 9... gxf5 {[%clk
0:09:09.1]} 10. e6 {[%clk 0:08:26.4]} 10... fxe6 {[%clk 0:09:09.2]} 11. Qh5+
{[%clk 0:08:26.7]} 11... Kd7 {[%clk 0:09:09.2]} 12. Bf4 {[%clk 0:07:54.4]} 12...
Bg7 {[%clk 0:09:05]} 13. O-O-O {[%clk 0:07:50]} 13... Qe8 {[%clk 0:09:04.9]} 14.
Qe2 {[%clk 0:06:30.4]} 14... Qg6 {[%clk 0:09:01.6]} 15. Rhe1 {[%clk 0:06:22.4]}
15... Bh6 {[%clk 0:08:42.6]} 16. Bxh6 {[%clk 0:05:42]} 16... Qxh6+ {[%clk
0:08:42.4]} 17. Kb1 {[%clk 0:05:43.9]} 17... Rhg8 {[%clk 0:08:43.8]} 18. g3
{[%clk 0:05:21.8]} 18... Nc8 {[%clk 0:08:06.1]} 19. Rd3 {[%clk 0:04:08]} 19...
Rg6 {[%clk 0:07:41.9]} 20. Re3 {[%clk 0:03:53.7]} 20... Kd6 {[%clk 0:05:48.9]}
21. Re5 {[%clk 0:02:14.6]} 21... N8a7 {[%clk 0:05:06.6]} 22. Nxd5 {[%clk
0:01:37.2]} 22... exd5 {[%clk 0:05:00.8]} 23. Rxd5+ {[%clk 0:01:37.6]} 23...
Kxd5 {[%clk 0:04:57.8]} 24. Qc4+ {[%clk 0:01:38.1]} 24... Kd6 {[%clk 0:04:58]}
25. Qc5+ {[%clk 0:01:39.7]} 25... Kd7 {[%clk 0:04:58.2]} 26. Qxe7+ {[%clk
0:01:41.3]} 26... Kc8 {[%clk 0:04:50]} 27. Qe8+ {[%clk 0:01:42.5]} 27... Nd8
{[%clk 0:04:51.1]} 28. Qxd8+ {[%clk 0:01:43.5]} 28... Kxd8 {[%clk 0:04:48.2]}
29. Re8# {[%clk 0:01:45.4]} 1-0